fUSD/lending_fUSD_20250609
["ID","MTS","AMOUNT","RATE_DAILY","PERIOD"]
[365133673,1749483086216,-490.0,0.00019835,2]
[365133674,1749483086226,-490.0,0.00019835,2]
[365133675,1749483086235,-916.39,0.00019835,2]
[365133676,1749483086246,-2031.94,0.00019835,2]
[365133677,1749483086255,-431.96032128,0.00019835,2]
[365133678,1749483086264,-493.89,0.00019835,2]
[365133679,1749483086273,-866.46,0.00019835,2]
[365133680,1749483086282,-599.73559266,0.00019835,2]
[365133681,1749483086291,-490.0,0.00019835,2]
[365133682,1749483086300,-490.0,0.00019835,2]
[365133683,1749483086309,-490.0,0.00019835,2]
[365133684,1749483086319,-490.0,0.00019835,2]
[365133685,1749483086328,-490.0,0.00019835,2]
[365133686,1749483086337,-1409.42,0.00019835,2]
[365133687,1749483086346,-1728.17,0.00019835,2]
[365133688,1749483086355,-490.0,0.00019835,2]
[365133689,1749483086365,-490.0,0.00019835,2]
[365133690,1749483086374,-490.0,0.00019835,2]
[365133691,1749483086383,-413.21366376,0.00019835,2]
[365133692,1749483086393,-407.76254616,0.00019835,2]
[365133693,1749483086406,-490.0,0.00019835,2]
[365133694,1749483086425,-490.0,0.00019835,2]
[365133695,1749483086444,-427.39449011,0.00019835,2]
[365133696,1749483086465,-490.0,0.00019835,2]
[365133697,1749483086481,-1083.55,0.00019835,2]
[365133698,1749483086499,-1017.88,0.00019835,2]
[365133699,1749483086517,-633.45,0.00019835,2]
[365133700,1749483086536,-5093.55,0.00019835,2]
[365133701,1749483086555,-490.0,0.00019835,2]
[365133702,1749483086575,-633.62,0.00019835,2]
[365133703,1749483086592,-490.0,0.00019835,2]
[365133704,1749483086607,-801.41,0.00019835,2]
[365133705,1749483086625,-490.0,0.00019835,2]
[365133706,1749483086639,-636.15,0.00019835,2]
[365133707,1749483086657,-467.71077723,0.00019835,2]
[365133708,1749483086673,-490.0,0.00019835,2]
[365133709,1749483086688,-1583.68,0.00019835,2]
[365133710,1749483086705,-490.0,0.00019835,2]
[365133711,1749483086722,-490.0,0.00019835,2]
[365133712,1749483086738,-490.0,0.00019835,2]
[365133713,1749483086753,-489.34428304,0.00019835,2]
[365133714,1749483086769,-1582.71,0.00019835,2]
[365133715,1749483086784,-490.0,0.00019835,2]
[365133716,1749483086801,-1094.41,0.00019835,2]
[365133717,1749483086816,-490.0,0.00019835,2]
[365133718,1749483086832,-1023.48,0.00019835,2]
[365133719,1749483086848,-829.53,0.00019835,2]
[365133720,1749483086865,-490.0,0.00019835,2]
[365133721,1749483086881,-3762.21,0.00019835,2]
[365133722,1749483086897,-510.62,0.00019835,2]
[365133723,1749483086912,-1837.5,0.00019835,2]
[365133724,1749483086928,-490.0,0.00019835,2]
[365133725,1749483086944,-392.15611086,0.00019835,2]
[365133726,1749483086959,-961.74,0.00019835,2]
[365133727,1749483086976,-490.0,0.00019835,2]
[365133728,1749483086991,-1826.81,0.00019835,2]
[365133729,1749483087006,-681.26,0.00019835,2]
[365133730,1749483087022,-490.0,0.00019835,2]
[365133731,1749483087037,-654.08,0.00019835,2]
[365133732,1749483087053,-490.0,0.00019835,2]
[365133733,1749483087069,-490.0,0.00019835,2]
[365133734,1749483087084,-1517.11,0.00019835,2]
[365133735,1749483087101,-413.70842636,0.00019835,2]
[365133736,1749483087116,-1088.59,0.00019835,2]
[365133737,1749483087131,-1035.12,0.00019835,2]
[365133738,1749483087147,-490.0,0.00019835,2]
[365133739,1749483087162,-550.71,0.00019835,2]
[365133740,1749483087177,-490.0,0.00019835,2]
[365133741,1749483087192,-490.0,0.00019835,2]
[365133742,1749483087208,-1000.0,0.00019835,2]
[365133743,1749483087226,-1876.05,0.00019835,2]
[365133744,1749483087242,-1179.61,0.00019835,2]
[365133745,1749483087257,-490.0,0.00019835,2]
[365133746,1749483087272,-385.72205612,0.00019835,2]
[365133747,1749483087287,-490.0,0.00019835,2]
[365133748,1749483087303,-691.04,0.00019835,2]
[365133749,1749483087318,-2182.45,0.00019835,2]
[365133750,1749483087333,-490.0,0.00019835,2]
[365133751,1749483087352,-490.0,0.00019835,2]
[365133752,1749483087367,-1170.03,0.00019835,2]
[365133753,1749483087383,-490.0,0.00019835,2]
[365133754,1749483087399,-490.0,0.00019835,2]
[365133755,1749483087414,-490.0,0.00019835,2]
[365133756,1749483087430,-1699.73,0.00019835,2]
[365133757,1749483087445,-490.0,0.00019835,2]
[365133758,1749483087461,-1727.29,0.00019835,2]
[365133759,1749483087477,-346.84645408,0.00019835,2]
[365133760,1749483087492,-611.81,0.00019835,2]
[365133761,1749483087507,-1457.22,0.00019835,2]
[365133762,1749483087522,-490.0,0.00019835,2]
[365133763,1749483087538,-997.84,0.00019835,2]
[365133764,1749483087553,-1394.31,0.00019835,2]
[365133765,1749483087568,-647.25,0.00019835,2]
[365133766,1749483087583,-490.0,0.00019835,2]
[365133767,1749483087598,-490.0,0.00019835,2]
[365133768,1749483087614,-1332.83,0.00019835,2]
[365133769,1749483087629,-2322.92,0.00019835,2]
[365133770,1749483087643,-490.0,0.00019835,2]
[365133771,1749483087658,-1088.58,0.00019835,2]
[365133772,1749483087673,-1821.45,0.00019835,2]
[365133773,1749483087688,-931.15,0.00019835,2]
[365133774,1749483087703,-672.55,0.00019835,2]
[365133775,1749483087721,-2502.63,0.00019835,2]
[365133776,1749483087736,-490.0,0.00019835,2]
[365133777,1749483087752,-1659.75,0.00019835,2]
[365133778,1749483087768,-490.0,0.00019835,2]
[365133779,1749483087784,-490.0,0.00019835,2]
[365133780,1749483087799,-490.0,0.00019835,2]
[365133781,1749483087815,-2136.28,0.00019835,2]
[365133782,1749483087831,-834.05,0.00019835,2]
[365133783,1749483087847,-490.0,0.00019835,2]
[365133784,1749483087862,-735.43,0.00019835,2]
[365133785,1749483087876,-490.0,0.00019835,2]
[365133786,1749483087892,-348.51499318,0.00019835,2]
[365133787,1749483087908,-3430.09,0.00019835,2]
[365133788,1749483087923,-652.14,0.00019835,2]
[365133789,1749483087938,-490.0,0.00019835,2]
[365133790,1749483087953,-1582.44,0.00019835,2]
[365133791,1749483087968,-2912.11,0.00019835,2]
[365133792,1749483087984,-490.0,0.00019835,2]
[365133793,1749483087999,-490.0,0.00019835,2]
[365133794,1749483088014,-2206.11,0.00019835,2]
[365133795,1749483088028,-740.69,0.00019835,2]
[365133796,1749483088043,-1326.67,0.00019835,2]
[365133797,1749483088058,-490.0,0.00019835,2]
[365133798,1749483088073,-1218.2,0.00019835,2]
[365133799,1749483088088,-490.0,0.00019835,2]
[365133800,1749483088102,-666.39,0.00019835,2]
[365133801,1749483088111,-2776.46,0.00019835,2]
[365133802,1749483088121,-5404.45,0.00019835,2]
[365133803,1749483088131,-2145.34,0.00019835,2]
[365133804,1749483088140,-851.39,0.00019835,2]
[365133805,1749483088150,-614.11,0.00019835,2]
[365133806,1749483088160,-727.42,0.00019835,2]
[365133807,1749483088169,-490.0,0.00019835,2]
[365133808,1749483088179,-490.0,0.00019835,2]
[365133809,1749483088189,-490.0,0.00019835,2]
[365133810,1749483088473,-948.79,0.00019835,2]
[365133811,1749483088524,-4070.27,0.00019835,2]
[365133812,1749483088542,-490.0,0.00019835,2]
[365133813,1749483088561,-1459.98,0.00019835,2]
[365133814,1749483088570,-739.98,0.00019835,2]
[365133815,1749483088580,-1063.03,0.00019835,2]
[365133816,1749483088591,-814.57,0.00019835,2]
[365133817,1749483088602,-490.0,0.00019835,2]
[365133818,1749483088612,-1204.91,0.00019835,2]
[365133819,1749483088622,-586.2,0.00019835,2]
[365133820,1749483088633,-490.0,0.00019835,2]
[365133821,1749483088642,-490.0,0.00019835,2]
[365133822,1749483088651,-1944.74,0.00019835,2]
[365133823,1749483088662,-490.0,0.00019835,2]
[365133824,1749483088672,-490.0,0.00019835,2]
[365133825,1749483088683,-953.43,0.00019835,2]
[365133826,1749483088695,-490.0,0.00019835,2]
[365133827,1749483088707,-886.64,0.00019835,2]
[365133828,1749483088718,-1352.01,0.00019835,2]
[365133829,1749483088728,-490.0,0.00019835,2]
[365133830,1749483088739,-2419.77,0.00019835,2]
[365133831,1749483088749,-1415.02,0.00019835,2]
[365133832,1749483088758,-3460.39,0.00019835,2]
[365133833,1749483088768,-1421.95,0.00019835,2]
[365133834,1749483088778,-490.0,0.00019835,2]
[365133835,1749483088789,-490.0,0.00019835,2]
[365133836,1749483088799,-4303.53,0.00019835,2]
[365133837,1749483088810,-975.71,0.00019835,2]
[365133838,1749483088820,-692.34,0.00019835,2]
[365133839,1749483088830,-490.0,0.00019835,2]
[365133840,1749483088840,-490.0,0.00019835,2]
[365133841,1749483088850,-1244.83,0.00019835,2]
[365133842,1749483088861,-2516.42,0.00019835,2]
[365133843,1749483088871,-490.0,0.00019835,2]
[365133844,1749483088882,-524.14,0.00019835,2]
[365133845,1749483088892,-490.0,0.00019835,2]
[365133846,1749483088902,-1013.88,0.00019835,2]
[365133847,1749483088912,-541.8,0.00019835,2]
[365133848,1749483088921,-1557.57,0.00019835,2]
[365133849,1749483088931,-3062.87,0.00019835,2]
[365133850,1749483088941,-1852.33,0.00019835,2]
[365133851,1749483088951,-490.0,0.00019835,2]
[365133852,1749483088962,-629.58,0.00019835,2]
[365133853,1749483088971,-1242.51,0.00019835,2]
[365133854,1749483088981,-505.49,0.00019835,2]
[365133855,1749483088992,-1125.57,0.00019835,2]
[365133856,1749483089002,-1080.73,0.00019835,2]
[365133857,1749483089012,-4018.09,0.00019835,2]
[365133858,1749483089022,-938.21,0.00019835,2]
[365133859,1749483089032,-642.78,0.00019835,2]
[365133860,1749483089042,-490.0,0.00019835,2]
[365133861,1749483089051,-261.37791872,0.00019835,2]
[365133862,1749483089059,-920.15,0.00019835,2]
[365133863,1749483089067,-1841.33,0.00019835,2]
[365133864,1749483089075,-748.52,0.00019835,2]
[365133865,1749483089083,-26122.19,0.00019835,2]
[365133866,1749483089091,-645.47,0.00019835,2]
[365133867,1749483089100,-614.35,0.00019835,2]
[365133868,1749483089109,-1169.41,0.00019835,2]
[365133869,1749483089119,-953.65,0.00019835,2]
[365133870,1749483089128,-1000.0,0.00019835,2]
[365133871,1749483089138,-490.0,0.00019835,2]
[365133872,1749483089147,-490.0,0.00019835,2]
[365133873,1749483089156,-824.76,0.00019835,2]
[365133874,1749483089166,-490.0,0.00019835,2]
[365133875,1749483089175,-490.0,0.00019835,2]
[365133876,1749483089185,-490.0,0.00019835,2]
[365133877,1749483089195,-490.0,0.00019835,2]
[365133878,1749483089205,-1050.17,0.00019835,2]
[365133879,1749483089215,-1765.84,0.00019835,2]
[365133880,1749483089224,-2739.13,0.00019835,2]
[365133881,1749483089234,-1551.73,0.00019835,2]
[365133882,1749483089243,-1308.87,0.00019835,2]
[365133883,1749483089252,-2089.49,0.00019835,2]
[365133884,1749483089262,-778.19,0.00019835,2]
[365133885,1749483089271,-1254.72,0.00019835,2]
[365133886,1749483089281,-490.0,0.00019835,2]
[365133887,1749483089291,-2525.32,0.00019835,2]
[365133888,1749483089300,-2191.05,0.00019835,2]
[365133889,1749483089310,-490.0,0.00019835,2]
[365133890,1749483089320,-1226.09,0.00019835,2]
[365133891,1749483089330,-993.93,0.00019835,2]
[365133892,1749483089340,-703.6,0.00019835,2]
[365133893,1749483089350,-490.0,0.00019835,2]
[365133894,1749483089359,-490.0,0.00019835,2]
[365133895,1749483089368,-671.2,0.00019835,2]
[365133896,1749483089378,-1367.32,0.00019835,2]
[365133897,1749483089387,-490.0,0.00019835,2]
[365133898,1749483089397,-490.0,0.00019835,2]
[365133899,1749483089407,-490.0,0.00019835,2]
[365133900,1749483089416,-490.0,0.00019835,2]
[365133901,1749483089426,-194.163822,0.00019835,2]
[365133902,1749483089435,-490.0,0.00019835,2]
[365133903,1749483089445,-566.86,0.00019835,2]
[365133904,1749483089455,-970.1,0.00019835,2]
[365133905,1749483089464,-490.0,0.00019835,2]
[365133906,1749483089474,-490.0,0.00019835,2]
[365133907,1749483089483,-1010.39,0.00019835,2]
[365133908,1749483089493,-1841.11,0.00019835,2]
[365133909,1749483089503,-819.57,0.00019835,2]
[365133910,1749483089512,-490.0,0.00019835,2]
[365133911,1749483089522,-490.0,0.00019835,2]
[365133912,1749483089532,-6838.69,0.00019835,2]
[365133913,1749483089543,-970.22,0.00019835,2]
[365133914,1749483089554,-1832.43,0.00019835,2]
[365133915,1749483089563,-708.32,0.00019835,2]
[365133916,1749483089573,-742.39,0.00019835,2]
[365133917,1749483089583,-831.6,0.00019835,2]
[365133918,1749483089593,-8188.76,0.00019835,2]
[365133919,1749483089602,-602.8,0.00019835,2]
[365133920,1749483089613,-1673.65,0.00019835,2]
[365133921,1749483089623,-490.0,0.00019835,2]
[365133922,1749483089633,-925.42,0.00019835,2]
[365133923,1749483089643,-2014.14,0.00019835,2]
[365133924,1749483089653,-490.0,0.00019835,2]
[365133925,1749483089663,-1090.2,0.00019835,2]
[365133926,1749483089674,-467.00824585,0.00019835,2]
[365133927,1749483089683,-644.98,0.00019835,2]
[365133928,1749483089693,-490.0,0.00019835,2]
[365133929,1749483089704,-724.77,0.00019835,2]
[365133930,1749483089719,-490.0,0.00019835,2]
[365133931,1749483089728,-2871.58,0.00019835,2]
[365133932,1749483089739,-2539.29,0.00019835,2]
[365133933,1749483089751,-1188.14,0.00019835,2]
[365133934,1749483089761,-490.0,0.00019835,2]
[365133935,1749483089771,-490.0,0.00019835,2]
[365133936,1749483089783,-402.29380278,0.00019835,2]
[365133937,1749483089793,-576.0145039,0.00019835,2]
[365133938,1749483089802,-709.96,0.00019835,2]
[365133939,1749483089812,-1703.54,0.00019835,2]
[365133940,1749483089823,-490.0,0.00019835,2]
[365133941,1749483089833,-490.0,0.00019835,2]
[365133942,1749483089843,-814.11,0.00019835,2]
[365133943,1749483089853,-3950.58,0.00019835,2]
[365133944,1749483089863,-490.0,0.00019835,2]
[365133945,1749483089873,-885.2,0.00019835,2]
[365133946,1749483089883,-490.0,0.00019835,2]
[365133947,1749483089893,-1288.49,0.00019835,2]
[365133948,1749483089903,-1815.16,0.00019835,2]
[365133949,1749483089913,-490.0,0.00019835,2]
[365133950,1749483089923,-497.62,0.00019835,2]
[365133951,1749483089932,-859.17,0.00019835,2]
[365133952,1749483089942,-2227.26,0.00019835,2]
[365133953,1749483089953,-714.99,0.00019835,2]
[365133954,1749483089963,-1681.21,0.00019835,2]
[365133955,1749483089973,-682.94,0.00019835,2]
[365133956,1749483089983,-1615.3,0.00019835,2]
[365133957,1749483089992,-490.0,0.00019835,2]
[365133958,1749483090002,-718.28,0.00019835,2]
[365133959,1749483090012,-824.54,0.00019835,2]
[365133960,1749483090022,-515.56,0.00019835,2]
[365133961,1749483090031,-490.0,0.00019835,2]
[365133962,1749483090041,-500.0,0.0001984,2]
[365133963,1749483090049,-200.0,0.0001984,2]
[365133964,1749483090058,-150.0,0.00019855,2]
[365133965,1749483090067,-500.0,0.00019862,2]
[365133966,1749483090076,-3237.9116,0.0001989,2]
[365133967,1749483090085,-500.0,0.00019899,2]
[365133968,1749483090095,-633.1484838,0.00019899,2]
[365133969,1749483090104,-7432.58789361,0.00019899,2]
[365133970,1749483090114,-862.74,0.00019899,2]
[365133971,1749483090123,-178.93188528,0.00019899,2]
[365133972,1749483090133,-7432.58789361,0.000199,2]
[365133973,1749483090143,-219.5016916,0.000199,2]
[365133974,1749483090153,-676.8312718,0.000199,2]
[365133975,1749483090162,-1000.0,0.000199,2]
[365133976,1749483090172,-178.55401762,0.000199,2]
[365133977,1749483090181,-5959.13767469,0.000199,2]
[365133978,1749483090190,-7432.58789361,0.000199,2]
[365133979,1749483090200,-150.0,0.00019916,2]
[365133980,1749483090210,-505.87162915,0.00019921,2]
[365133981,1749483090220,-1000.0,0.00019921,2]
[365133982,1749483090230,-1000.0,0.00019921,2]
[365133983,1749483090239,-1000.0,0.00019921,2]
[365133984,1749483090249,-502.81335354,0.00019921,2]
[365133985,1749483090258,-1000.0,0.00019921,2]
[365133986,1749483090268,-1000.0,0.00019921,2]
[365133987,1749483090278,-1000.0,0.00019921,2]
[365133988,1749483090287,-250.0,0.00019949,2]
[365133989,1749483090297,-901.622,0.0001995,2]
[365133990,1749483090307,-1104.53,0.00019972,2]
[365133991,1749483090317,-150.0,0.00019977,2]
[365133992,1749483090327,-34029.53758088,0.0001998,2]
[365133993,1749483090336,-153.26403468,0.00019989,2]
[365133994,1749483090346,-500.0,0.00019989,2]
[365133995,1749483090356,-59139.87390293,0.0001999,2]
[365133996,1749483090365,-740.71727786,0.0001999,2]
[365133997,1749483090375,-3449.02,0.00019997,2]
[365133998,1749483090386,-14155.07,0.00019997,2]
[365133999,1749483090395,-500.0,0.00019998,2]
[365134000,1749483090406,-491.70472042,0.00019998,2]
[365134001,1749483090415,-862.74,0.00019998,2]
[365134002,1749483090424,-12215.7017902,0.00019999,3]
[365134003,1749483090434,-872861.51029463,0.00019999,3]
[365134004,1749483091827,-254.02932864,0.00019342,2]
[365134005,1749483091837,-371657.49067136,0.00019999,3]
[365134006,1749483091958,-13341.05487602,0.00019999,3]
[365134007,1749483091969,-117878.39217991,0.00019999,3]
[365134008,1749483091980,-2493.5713982,0.00019999,3]
[365134009,1749483092000,-27167.55926451,0.00019999,3]
[365134010,1749483092041,-1177.93,0.00019178,2]
[365134011,1749483092051,-17729.07,0.00019999,3]
[365134012,1749483092062,-3318885.27783738,0.00019999,3]
[365134013,1749483092072,-666.0,0.00019999,2]
[365134014,1749483092081,-300.0,0.00019999,2]
[365134015,1749483092091,-300.0,0.00019999,2]
[365134016,1749483092100,-300.0,0.00019999,2]
[365134017,1749483092109,-1000.0,0.00019999,2]
[365134018,1749483092118,-1000.0,0.00019999,2]
[365134019,1749483092127,-314.79892736,0.00019999,2]
[365134020,1749483092136,-2000.0,0.00019999,2]
[365134021,1749483092145,-1104.53,0.00019999,2]
[365134022,1749483092154,-1104.53,0.00019999,2]
[365134023,1749483092163,-1104.53,0.00019999,2]
[365134024,1749483092172,-1104.53,0.00019999,2]
[365134025,1749483092182,-1104.53,0.00019999,2]
[365134026,1749483092191,-1104.53,0.00019999,2]
[365134027,1749483092199,-1104.53,0.00019999,2]
[365134028,1749483092209,-1104.53,0.00019999,2]
[365134029,1749483092218,-1104.53,0.00019999,2]
[365134030,1749483092227,-1104.53,0.00019999,2]
[365134031,1749483092237,-1104.53,0.00019999,2]
[365134032,1749483092246,-1104.53,0.00019999,2]
[365134033,1749483092256,-1104.53,0.00019999,2]
[365134034,1749483092265,-1104.53,0.00019999,2]
[365134035,1749483092275,-1104.53,0.00019999,2]
[365134036,1749483092284,-1104.53,0.00019999,2]
[365134037,1749483092294,-1104.53,0.00019999,2]
[365134038,1749483092303,-1104.53,0.00019999,2]
[365134039,1749483092312,-1104.53,0.00019999,2]
[365134040,1749483092322,-1104.53,0.00019999,2]
[365134041,1749483092331,-1104.53,0.00019999,2]
[365134042,1749483092341,-1104.63788741,0.00019999,2]
[365134043,1749483092350,-500.0,0.00019999,2]
[365134044,1749483092360,-500.0,0.00019999,2]
[365134045,1749483092370,-500.0,0.00019999,2]
[365134046,1749483092379,-500.0,0.00019999,2]
[365134047,1749483092388,-500.0,0.00019999,2]
[365134048,1749483092398,-517.53754856,0.00019999,2]
[365134049,1749483092407,-3449.02,0.00019999,2]
[365134050,1749483092416,-3449.02,0.00019999,2]
[365134051,1749483092425,-3449.02,0.00019999,2]
[365134052,1749483092435,-3449.02,0.00019999,2]
[365134053,1749483092444,-3449.02,0.00019999,2]
[365134054,1749483092454,-3449.02,0.00019999,2]
[365134055,1749483092464,-3449.02,0.00019999,2]
[365134056,1749483092473,-3449.02,0.00019999,2]
[365134057,1749483092483,-3449.03104472,0.00019999,2]
[365134058,1749483092492,-862.74,0.00019999,2]
[365134059,1749483092502,-862.74,0.00019999,2]
[365134060,1749483092512,-862.74,0.00019999,2]
[365134061,1749483092521,-862.74,0.00019999,2]
[365134062,1749483092531,-862.74,0.00019999,2]
[365134063,1749483092541,-862.74,0.00019999,2]
[365134064,1749483092551,-862.74,0.00019999,2]
[365134065,1749483092561,-862.74,0.00019999,2]
[365134066,1749483092571,-862.74,0.00019999,2]
[365134067,1749483092580,-862.74,0.00019999,2]
[365134068,1749483092590,-862.74,0.00019999,2]
[365134069,1749483092600,-862.91252091,0.00019999,2]
[365134070,1749483092610,-14155.07,0.00019999,2]
[365134071,1749483092620,-14155.07,0.00019999,2]
[365134072,1749483092630,-14155.07,0.00019999,2]
[365134073,1749483092639,-14155.07,0.00019999,2]
[365134074,1749483092649,-14155.07,0.00019999,2]
[365134075,1749483092658,-14155.07,0.00019999,2]
[365134076,1749483092668,-14155.07,0.00019999,2]
[365134077,1749483092677,-14155.07,0.00019999,2]
[365134078,1749483092687,-14155.2098163,0.00019999,2]
[365134079,1749483092698,-2260.52134697,0.0002,2]
[365134080,1749483092710,-1942879.08598566,0.0002,2]
[365134081,1749483092722,-1261.76849999,0.0002,2]
[365134082,1749483093331,-441.44600502,0.00019178,2]
[365134083,1749483093356,-196.13399498,0.00019178,2]
[365134084,1749483093366,-1177.93,0.00019342,2]
[365134085,1749483093375,-1177.93,0.00019506,2]
[365134086,1749483093385,-1177.93,0.00019671,2]
[365134087,1749483093395,-1177.93,0.00019835,2]
[365134088,1749483093404,-61749.79510775,0.0002,2]
[365134089,1749483093416,-25186.3396482,0.0002,2]
[365134090,1749483094021,-800.0,0.00019178,2]
[365134091,1749483094214,-2929.2,0.00019178,2]
[365134092,1749483094224,-637.58,0.00019342,2]
[365134093,1749483094234,-3729.2,0.00019342,2]
[365134094,1749483094243,-637.58,0.00019506,2]
[365134095,1749483094253,-3729.2,0.00019506,2]
[365134096,1749483094263,-637.58,0.00019671,2]
[365134097,1749483094272,-3729.2,0.00019671,2]
[365134098,1749483094283,-637.58,0.00019835,2]
[365134099,1749483094293,-3729.2,0.00019835,2]
[365134100,1749483094303,-195533.67999999,0.0002,2]
[365134101,1749483094319,-29142.55985086,0.0002,2]
[365134102,1749483094331,-337.06349913,0.0002,2]
[365134103,1749483121584,838.0927,0.00024657,120]
[365134104,1749483137624,500.0,0.00024649,120]
[365134105,1749483146841,500.0,0.00024649,120]
[365134106,1749483198653,300.0,0.00024649,120]
[365134107,1749483436920,163.5,0.000171,2]
[365134108,1749483521769,1129.77,0.00016568,2]
[365134109,1749483535115,-1129.77,0.00018832,2]
[365134110,1749483535141,-150.0,0.000189,2]
[365134111,1749483535167,-400.0,0.00019,2]
[365134112,1749483535194,-152.11417378,0.00019078,2]
[365134113,1749483535220,-833.29909032,0.00019078,2]
[365134114,1749483535245,-1000.0,0.00019078,2]
[365134115,1749483535271,-150.0,0.000191,2]
[365134116,1749483535298,-1957.856,0.00019166,2]
[365134117,1749483535327,-207.4,0.00019166,2]
[365134118,1749483535354,-500.0,0.00019173,2]
[365134119,1749483535381,-500.0,0.00019173,2]
[365134120,1749483535406,-500.0,0.00019173,2]
[365134121,1749483535434,-1200.0,0.00019176,2]
[365134122,1749483535461,-300.0,0.00019176,2]
[365134123,1749483535487,-500.0,0.00019177,2]
[365134124,1749483535515,-500.0,0.00019177,2]
[365134125,1749483535543,-500.0,0.00019177,2]
[365134126,1749483535574,-500.0,0.00019177,2]
[365134127,1749483535601,-500.0,0.00019177,2]
[365134128,1749483535630,-635.46326072,0.00019177,2]
[365134129,1749483535658,-500.0,0.00019177,2]
[365134130,1749483535683,-500.0,0.00019177,2]
[365134131,1749483535711,-500.0,0.00019177,2]
[365134132,1749483535739,-332.96721259,0.00019177,2]
[365134133,1749483535767,-500.0,0.00019177,2]
[365134134,1749483535793,-500.0,0.00019177,2]
[365134135,1749483535821,-250.0,0.00019177,2]
[365134136,1749483535852,-500.0,0.00019177,2]
[365134137,1749483535881,-500.0,0.00019177,2]
[365134138,1749483535911,-500.0,0.00019177,2]
[365134139,1749483535938,-500.0,0.00019177,2]
[365134140,1749483535966,-500.0,0.00019177,2]
[365134141,1749483535994,-500.0,0.00019177,2]
[365134142,1749483536022,-500.0,0.00019177,2]
[365134143,1749483536049,-200.0,0.00019177,2]
[365134144,1749483536078,-250.0,0.00019178,2]
[365134145,1749483536107,-490.0,0.00019178,2]
[365134146,1749483536136,-490.0,0.00019178,2]
[365134147,1749483536164,-490.0,0.00019178,2]
[365134148,1749483536192,-465.76145024,0.00019178,2]
[365134149,1749483536220,-490.0,0.00019178,2]
[365134150,1749483536249,-490.0,0.00019178,2]
[365134151,1749483536278,-490.0,0.00019178,2]
[365134152,1749483536307,-1105.38,0.00019178,2]
[365134153,1749483536334,-480.0,0.00019178,2]
[365134154,1749483536362,-937.33,0.00019178,2]
[365134155,1749483536389,-490.0,0.00019178,2]
[365134156,1749483536416,-460.0,0.00019178,2]
[365134157,1749483536443,-503.95,0.00019178,2]
[365134158,1749483536470,-490.0,0.00019178,2]
[365134159,1749483536495,-593.29,0.00019178,2]
[365134160,1749483536522,-490.0,0.00019178,2]
[365134161,1749483536547,-490.0,0.00019178,2]
[365134162,1749483536573,-509.79,0.00019178,2]
[365134163,1749483536599,-490.0,0.00019178,2]
[365134164,1749483536626,-490.0,0.00019178,2]
[365134165,1749483536651,-469.36349995,0.00019178,2]
[365134166,1749483536677,-401.25275229,0.00019178,2]
[365134167,1749483536703,-490.0,0.00019178,2]
[365134168,1749483536729,-490.0,0.00019178,2]
[365134169,1749483536754,-490.0,0.00019178,2]
[365134170,1749483536784,-742.02,0.00019178,2]
[365134171,1749483536809,-461.35819104,0.00019178,2]
[365134172,1749483536841,-556.32,0.00019178,2]